[Event "Late-Titled-Tuesday-Blitz-May-14-2024"]
[Site "Chess.com"]
[Date "2024.05.14"]
[Round "1"]
[White "ChristopherYoo"]
[Black "DishonorOnYourCow"]
[Result "1-0"]
[WhiteElo "3001"]
[BlackElo "2529"]
[TimeControl "180+1"]
[EndTime "14:05:24 PDT"]
[Termination "ChristopherYoo won by resignation"]

1. e4 {[%clk 0:02:57.7]} 1... c5 {[%clk 0:02:59.7]} 2. Nf3 {[%clk 0:02:57.5]}
2... d6 {[%clk 0:03:00.1]} 3. d4 {[%clk 0:02:57.8]} 3... cxd4 {[%clk 0:03:00.5]}
4. Nxd4 {[%clk 0:02:58.7]} 4... Nf6 {[%clk 0:03:00.9]} 5. Nc3 {[%clk 0:02:59.4]}
5... a6 {[%clk 0:03:01.5]} 6. Bg5 {[%clk 0:02:58.3]} 6... Nbd7 {[%clk
0:03:00.5]} 7. Qe2 {[%clk 0:02:55.4]} 7... h6 {[%clk 0:02:57.3]} 8. Bh4 {[%clk
0:02:53.2]} 8... g6 {[%clk 0:02:56.1]} 9. f4 {[%clk 0:02:52.5]} 9... e5 {[%clk
0:02:55.5]} 10. fxe5 {[%clk 0:02:52.3]} 10... dxe5 {[%clk 0:02:56.4]} 11. O-O-O
{[%clk 0:02:52.5]} 11... Qc7 {[%clk 0:02:54.4]} 12. Nb3 {[%clk 0:02:51.1]} 12...
b5 {[%clk 0:02:51.3]} 13. Rxd7 {[%clk 0:02:50.6]} 13... Nxd7 {[%clk 0:02:51.1]}
14. Nd5 {[%clk 0:02:50.9]} 14... Qb8 {[%clk 0:02:43.6]} 15. Qd2 {[%clk
0:02:49.6]} 15... Bb7 {[%clk 0:02:04.5]} 16. Na5 {[%clk 0:02:45.5]} 16... Bc5
{[%clk 0:01:26.1]} 17. Be2 {[%clk 0:02:20.1]} 17... O-O {[%clk 0:00:26.3]} 18.
Nxb7 {[%clk 0:02:15.4]} 18... Qxb7 {[%clk 0:00:24.3]} 19. Qxh6 {[%clk
0:02:14.8]} 19... Qc6 {[%clk 0:00:18.9]} 20. Bg4 {[%clk 0:02:08.3]} 20... f5
{[%clk 0:00:14.4]} 21. exf5 {[%clk 0:01:59.3]} 21... Qxd5 {[%clk 0:00:12]} 22.
fxg6 {[%clk 0:01:58.7]} 22... Be3+ {[%clk 0:00:05.8]} 23. Qxe3 {[%clk
0:01:58.6]} 23... Nf6 {[%clk 0:00:05.1]} 24. Qh6 {[%clk 0:01:52.8]} 24... Ra7
{[%clk 0:00:05.1]} 25. Rf1 {[%clk 0:01:43.9]} 25... Qc5 {[%clk 0:00:02.3]} 26.
Be6+ {[%clk 0:01:42.5]} 1-0

[Event "Late-Titled-Tuesday-Blitz-May-14-2024"]
[Site "Chess.com"]
[Date "2024.05.14"]
[Round "1"]
[White "dianamirza"]
[Black "kylelancman"]
[Result "0-1"]
[WhiteElo "1948"]
[BlackElo "2555"]
[TimeControl "180+1"]
[EndTime "14:05:26 PDT"]
[Termination "kylelancman won by resignation"]

1. e4 {[%clk 0:02:47.9]} 1... c5 {[%clk 0:02:58.3]} 2. Nf3 {[%clk 0:02:47.8]}
2... g6 {[%clk 0:02:58.6]} 3. d4 {[%clk 0:02:46.8]} 3... cxd4 {[%clk 0:02:59.5]}
4. Nxd4 {[%clk 0:02:47.2]} 4... Nc6 {[%clk 0:02:59.9]} 5. Nc3 {[%clk 0:02:45.1]}
5... Bg7 {[%clk 0:02:59.3]} 6. Be3 {[%clk 0:02:43.9]} 6... Nf6 {[%clk
0:02:59.6]} 7. f3 {[%clk 0:02:43]} 7... O-O {[%clk 0:02:59.5]} 8. Qd2 {[%clk
0:02:42.8]} 8... d5 {[%clk 0:02:59.2]} 9. O-O-O {[%clk 0:02:42]} 9... dxe4
{[%clk 0:02:57.1]} 10. Nxc6 {[%clk 0:02:38.4]} 10... Qxd2+ {[%clk 0:02:56]} 11.
Rxd2 {[%clk 0:02:39.3]} 11... bxc6 {[%clk 0:02:55.2]} 12. fxe4 {[%clk
0:02:34.3]} 12... Ng4 {[%clk 0:02:54]} 13. Bc5 {[%clk 0:02:30.1]} 13... Bh6
{[%clk 0:02:52.1]} 14. Bxe7 {[%clk 0:02:22.3]} 14... Re8 {[%clk 0:02:51.1]} 15.
Bc5 {[%clk 0:02:04.1]} 15... Nf6 {[%clk 0:02:09.7]} 16. Bd3 {[%clk 0:01:42.9]}
16... Nd7 {[%clk 0:02:08.9]} 17. Ba3 {[%clk 0:01:21]} 17... Ne5 {[%clk
0:02:06.3]} 18. Rf1 {[%clk 0:01:11.2]} 18... Rd8 {[%clk 0:01:57.6]} 19. Kd1
{[%clk 0:00:59.3]} 19... Bxd2 {[%clk 0:01:55.7]} 20. Kxd2 {[%clk 0:00:58.5]}
20... Nc4+ {[%clk 0:01:55.5]} 21. Ke2 {[%clk 0:00:54.2]} 21... Nxa3 {[%clk
0:01:55.1]} 22. bxa3 {[%clk 0:00:55.1]} 22... Be6 {[%clk 0:01:54.4]} 23. e5
{[%clk 0:00:51.9]} 23... Rab8 {[%clk 0:01:52]} 24. Na4 {[%clk 0:00:41.7]} 24...
Bxa2 {[%clk 0:01:45.9]} 25. Nc5 {[%clk 0:00:37.9]} 25... Bd5 {[%clk 0:01:43.6]}
26. g3 {[%clk 0:00:28.2]} 26... Rb2 {[%clk 0:01:39.1]} 27. Ne4 {[%clk
0:00:15.3]} 27... Bxe4 {[%clk 0:01:37.3]} 28. Bxe4 {[%clk 0:00:14.6]} 28... Re8
{[%clk 0:01:37.2]} 29. Bxc6 {[%clk 0:00:10.1]} 29... Rxc2+ {[%clk 0:01:36.3]}
0-1

[Event "Late-Titled-Tuesday-Blitz-May-14-2024"]
[Site "Chess.com"]
[Date "2024.05.14"]
[Round "1"]
[White "djano"]
[Black "sergoy"]
[Result "0-1"]
[WhiteElo "2531"]
[BlackElo "3012"]
[TimeControl "180+1"]
[EndTime "14:05:28 PDT"]
[Termination "sergoy won by resignation"]

1. e4 {[%clk 0:03:00.9]} 1... c5 {[%clk 0:02:59.3]} 2. Nc3 {[%clk 0:03:00.5]}
2... d6 {[%clk 0:02:58.3]} 3. f4 {[%clk 0:02:59.9]} 3... Nc6 {[%clk 0:02:52.7]}
4. Nf3 {[%clk 0:02:59.8]} 4... Nf6 {[%clk 0:02:51.3]} 5. Bb5 {[%clk 0:02:56.2]}
5... Bd7 {[%clk 0:02:51]} 6. O-O {[%clk 0:02:55.7]} 6... g6 {[%clk 0:02:51.4]}
7. d3 {[%clk 0:02:51.9]} 7... Bg7 {[%clk 0:02:51.1]} 8. Bxc6 {[%clk 0:02:49.8]}
8... Bxc6 {[%clk 0:02:50]} 9. Qe1 {[%clk 0:02:50.1]} 9... b5 {[%clk 0:02:46.7]}
10. Qh4 {[%clk 0:02:38.2]} 10... b4 {[%clk 0:02:44.1]} 11. Ne2 {[%clk
0:02:37.7]} 11... a5 {[%clk 0:02:44.2]} 12. f5 {[%clk 0:02:35.5]} 12... gxf5
{[%clk 0:02:34.8]} 13. exf5 {[%clk 0:02:34.1]} 13... Rg8 {[%clk 0:02:33.2]} 14.
Ng3 {[%clk 0:02:24.6]} 14... Qc7 {[%clk 0:02:29.6]} 15. a3 {[%clk 0:02:20.9]}
15... b3 {[%clk 0:02:24]} 16. c3 {[%clk 0:02:13.3]} 16... O-O-O {[%clk
0:02:18.9]} 17. d4 {[%clk 0:01:50.4]} 17... Nd5 {[%clk 0:02:03.6]} 18. dxc5
{[%clk 0:01:47]} 18... dxc5 {[%clk 0:02:03.2]} 19. Qc4 {[%clk 0:01:39.2]} 19...
Qb6 {[%clk 0:01:59]} 20. Ne1 {[%clk 0:01:18.9]} 20... Bb5 {[%clk 0:01:57.2]} 21.
Qxb3 {[%clk 0:01:00.3]} 21... Bxf1 {[%clk 0:01:56.8]} 22. Qxb6 {[%clk
0:01:01.2]} 22... Nxb6 {[%clk 0:01:57.3]} 23. Kxf1 {[%clk 0:01:01.5]} 23... Rd5
{[%clk 0:01:51.2]} 24. Ke2 {[%clk 0:00:56.5]} 24... Be5 {[%clk 0:01:44.8]} 25.
Ne4 {[%clk 0:00:52.5]} 25... Bxh2 {[%clk 0:01:44.7]} 26. f6 {[%clk 0:00:47.8]}
26... Re5 {[%clk 0:01:39.4]} 27. Kf3 {[%clk 0:00:46.4]} 27... exf6 {[%clk
0:01:38.7]} 28. Nd3 {[%clk 0:00:46.6]} 28... Rf5+ {[%clk 0:01:37.7]} 29. Bf4
{[%clk 0:00:45.1]} 29... Nc4 {[%clk 0:01:22.7]} 30. b3 {[%clk 0:00:40.1]} 30...
Ne5+ {[%clk 0:01:21.4]} 31. Nxe5 {[%clk 0:00:37.6]} 31... Rxf4+ {[%clk
0:01:19.8]} 32. Ke3 {[%clk 0:00:37.3]} 32... fxe5 {[%clk 0:01:20.2]} 0-1

[Event "Late-Titled-Tuesday-Blitz-May-14-2024"]
[Site "Chess.com"]
[Date "2024.05.14"]
[Round "1"]
[White "osielchesslover2011"]
[Black "varunkrishnanchess"]
[Result "0-1"]
[WhiteElo "2228"]
[BlackElo "2603"]
[TimeControl "180+1"]
[EndTime "14:05:29 PDT"]
[Termination "varunkrishnanchess won by checkmate"]

1. e4 {[%clk 0:02:59.9]} 1... a6 {[%clk 0:02:59.8]} 2. d4 {[%clk 0:02:58.3]}
2... e6 {[%clk 0:03:00.4]} 3. Nc3 {[%clk 0:02:57.4]} 3... d5 {[%clk 0:03:00.5]}
4. e5 {[%clk 0:02:57.1]} 4... c5 {[%clk 0:02:59.8]} 5. Nge2 {[%clk 0:02:53.4]}
5... Nc6 {[%clk 0:02:57.1]} 6. Be3 {[%clk 0:02:53.6]} 6... Nh6 {[%clk
0:02:48.7]} 7. Qd2 {[%clk 0:02:48.8]} 7... Nf5 {[%clk 0:02:48.2]} 8. O-O-O
{[%clk 0:02:41.1]} 8... c4 {[%clk 0:02:48.1]} 9. g4 {[%clk 0:02:38.1]} 9... Nxe3
{[%clk 0:02:47.5]} 10. Qxe3 {[%clk 0:02:37.5]} 10... b5 {[%clk 0:02:47.3]} 11.
f4 {[%clk 0:02:36.2]} 11... Qa5 {[%clk 0:02:46.9]} 12. f5 {[%clk 0:02:21.2]}
12... b4 {[%clk 0:02:47]} 13. Nb1 {[%clk 0:02:20.5]} 13... Qxa2 {[%clk
0:02:44.1]} 14. fxe6 {[%clk 0:02:20.4]} 14... fxe6 {[%clk 0:02:43.6]} 15. Nf4
{[%clk 0:02:08.1]} 15... Be7 {[%clk 0:02:27.4]} 16. Be2 {[%clk 0:02:01.1]} 16...
O-O {[%clk 0:02:24.6]} 17. h4 {[%clk 0:01:54.3]} 17... c3 {[%clk 0:02:24.4]} 18.
bxc3 {[%clk 0:01:45]} 18... bxc3 {[%clk 0:02:22.4]} 19. Nxc3 {[%clk 0:01:44.7]}
19... Qa3+ {[%clk 0:02:18.5]} 20. Kd2 {[%clk 0:01:43.1]} 20... Bb4 {[%clk
0:02:18.7]} 21. Nh5 {[%clk 0:01:32.9]} 21... Rf2 {[%clk 0:01:23.8]} 22. Rhe1
{[%clk 0:01:23.8]} 22... Na5 {[%clk 0:00:56]} 23. Qxf2 {[%clk 0:00:40.2]} 23...
Qxc3+ {[%clk 0:00:54.9]} 24. Kc1 {[%clk 0:00:39.7]} 24... Ba3+ {[%clk
0:00:55.8]} 25. Kb1 {[%clk 0:00:39.7]} 25... Qb2# {[%clk 0:00:56.7]} 0-1

[Event "Late-Titled-Tuesday-Blitz-May-14-2024"]
[Site "Chess.com"]
[Date "2024.05.14"]
[Round "1"]
[White "chessisveryfun1264"]
[Black "MagnusCarlsen"]
[Result "0-1"]
[WhiteElo "2550"]
[BlackElo "3217"]
[TimeControl "180+1"]
[EndTime "14:05:30 PDT"]
[Termination "MagnusCarlsen won by resignation"]

1. e3 {[%clk 0:03:00.7]} 1... g6 {[%clk 0:02:56.9]} 2. Nf3 {[%clk 0:02:56.8]}
2... Bg7 {[%clk 0:02:57.8]} 3. d4 {[%clk 0:02:56.9]} 3... b6 {[%clk 0:02:57]} 4.
b4 {[%clk 0:02:52.3]} 4... Bb7 {[%clk 0:02:56.9]} 5. Bb2 {[%clk 0:02:52.9]} 5...
d6 {[%clk 0:02:55.9]} 6. c4 {[%clk 0:02:51.3]} 6... Nd7 {[%clk 0:02:55.8]} 7.
Nbd2 {[%clk 0:02:50.6]} 7... a5 {[%clk 0:02:55.3]} 8. a3 {[%clk 0:02:50.4]} 8...
e5 {[%clk 0:02:55.7]} 9. d5 {[%clk 0:02:43.9]} 9... Ngf6 {[%clk 0:02:53.4]} 10.
Be2 {[%clk 0:02:43.8]} 10... O-O {[%clk 0:02:53.2]} 11. O-O {[%clk 0:02:44]}
11... Qe7 {[%clk 0:02:53.4]} 12. Qc2 {[%clk 0:02:41.2]} 12... Nh5 {[%clk
0:02:46.6]} 13. Ne1 {[%clk 0:02:29.9]} 13... f5 {[%clk 0:02:45]} 14. g3 {[%clk
0:02:10.4]} 14... Ndf6 {[%clk 0:02:40.1]} 15. Ng2 {[%clk 0:02:08.4]} 15... Bc8
{[%clk 0:02:35.2]} 16. Rac1 {[%clk 0:02:00.7]} 16... axb4 {[%clk 0:02:34.1]} 17.
axb4 {[%clk 0:02:01.6]} 17... f4 {[%clk 0:02:34.1]} 18. exf4 {[%clk 0:01:59.4]}
18... exf4 {[%clk 0:02:32.2]} 19. Rfe1 {[%clk 0:01:54.9]} 19... Qf7 {[%clk
0:02:30.9]} 20. Nf3 {[%clk 0:01:51.2]} 20... Bf5 {[%clk 0:02:21.9]} 21. Bd3
{[%clk 0:01:51.6]} 21... fxg3 {[%clk 0:02:14.3]} 22. fxg3 {[%clk 0:01:40.6]}
22... Nxd5 {[%clk 0:02:07]} 23. Bxf5 {[%clk 0:01:31.4]} 23... Nxb4 {[%clk
0:02:04.2]} 24. Qb3 {[%clk 0:01:21.3]} 24... Qxf5 {[%clk 0:02:03.5]} 25. c5+
{[%clk 0:01:17.7]} 25... Qd5 {[%clk 0:02:02.8]} 26. Qxd5+ {[%clk 0:01:14.8]}
26... Nxd5 {[%clk 0:02:02.7]} 27. Bxg7 {[%clk 0:01:15.5]} 27... Nxg7 {[%clk
0:02:00.6]} 28. cxd6 {[%clk 0:01:06.6]} 28... Rxf3 {[%clk 0:02:00]} 29. Red1
{[%clk 0:01:05.8]} 29... Nc3 {[%clk 0:01:49.3]} 30. Nh4 {[%clk 0:01:01.7]} 30...
Ne2+ {[%clk 0:01:40.4]} 31. Kg2 {[%clk 0:01:01.2]} 31... Nxc1 {[%clk 0:01:41.3]}
32. Nxf3 {[%clk 0:00:59.8]} 32... Nb3 {[%clk 0:01:40.2]} 33. dxc7 {[%clk
0:00:58.1]} 33... Ne6 {[%clk 0:01:40]} 34. Rb1 {[%clk 0:00:51.4]} 34... Nbc5
{[%clk 0:01:36.1]} 35. Rxb6 {[%clk 0:00:43.4]} 35... Nxc7 {[%clk 0:01:36.6]} 36.
Rc6 {[%clk 0:00:42.6]} 36... N7e6 {[%clk 0:01:36.3]} 37. Ne5 {[%clk 0:00:43.5]}
37... Kg7 {[%clk 0:01:35.7]} 38. Ng4 {[%clk 0:00:38.7]} 38... Ra2+ {[%clk
0:01:35.2]} 39. Kf3 {[%clk 0:00:36.9]} 39... Nd4+ {[%clk 0:01:34.5]} 0-1

[Event "Late-Titled-Tuesday-Blitz-May-14-2024"]
[Site "Chess.com"]
[Date "2024.05.14"]
[Round "1"]
[White "semchik90"]
[Black "Yaacovn"]
[Result "0-1"]
[WhiteElo "2435"]
[BlackElo "2765"]
[TimeControl "180+1"]
[EndTime "14:05:34 PDT"]
[Termination "Yaacovn won by resignation"]

1. Nf3 {[%clk 0:02:59.8]} 1... b6 {[%clk 0:02:59.6]} 2. d4 {[%clk 0:02:59.2]}
2... Nf6 {[%clk 0:02:59.3]} 3. c4 {[%clk 0:02:59.6]} 3... e6 {[%clk 0:02:59.5]}
4. g3 {[%clk 0:02:59.5]} 4... Bb7 {[%clk 0:02:57.7]} 5. Bg2 {[%clk 0:02:59.4]}
5... Be7 {[%clk 0:02:57.8]} 6. O-O {[%clk 0:02:58.7]} 6... O-O {[%clk
0:02:57.2]} 7. Nc3 {[%clk 0:02:58.2]} 7... Ne4 {[%clk 0:02:57.1]} 8. Qc2 {[%clk
0:02:58.1]} 8... Nxc3 {[%clk 0:02:56.7]} 9. bxc3 {[%clk 0:02:58.3]} 9... Bf6
{[%clk 0:02:57.1]} 10. e4 {[%clk 0:02:57.2]} 10... g6 {[%clk 0:02:48.4]} 11. Bh6
{[%clk 0:02:54.5]} 11... Re8 {[%clk 0:02:47.3]} 12. e5 {[%clk 0:02:53.3]} 12...
Bg7 {[%clk 0:02:45.7]} 13. Bxg7 {[%clk 0:02:52.1]} 13... Kxg7 {[%clk 0:02:46.6]}
14. Qd2 {[%clk 0:02:47.8]} 14... d6 {[%clk 0:02:46.6]} 15. Qf4 {[%clk
0:02:44.1]} 15... h6 {[%clk 0:02:40.7]} 16. h4 {[%clk 0:02:40.6]} 16... Nd7
{[%clk 0:02:38.1]} 17. Rfe1 {[%clk 0:02:33.4]} 17... Qe7 {[%clk 0:02:33.3]} 18.
a4 {[%clk 0:02:22]} 18... Rad8 {[%clk 0:02:31.5]} 19. a5 {[%clk 0:02:17.9]}
19... Bxf3 {[%clk 0:02:31.7]} 20. Bxf3 {[%clk 0:02:11]} 20... dxe5 {[%clk
0:02:31.9]} 21. dxe5 {[%clk 0:02:08.7]} 21... Nc5 {[%clk 0:02:32.2]} 22. axb6
{[%clk 0:02:03.5]} 22... cxb6 {[%clk 0:02:32.4]} 23. Red1 {[%clk 0:01:58.7]}
23... a5 {[%clk 0:02:30.6]} 24. Rab1 {[%clk 0:01:53.1]} 24... Rxd1+ {[%clk
0:02:29.2]} 25. Rxd1 {[%clk 0:01:52.4]} 25... a4 {[%clk 0:02:29.5]} 26. Bc6
{[%clk 0:01:45.6]} 26... Rd8 {[%clk 0:02:27.7]} 27. Rd6 {[%clk 0:01:41.4]} 27...
Rxd6 {[%clk 0:02:25.5]} 28. exd6 {[%clk 0:01:41.2]} 28... Qf6 {[%clk 0:02:22.7]}
29. d7 {[%clk 0:01:35.8]} 29... Qxf4 {[%clk 0:02:22.6]} 30. gxf4 {[%clk
0:01:36.5]} 30... Nxd7 {[%clk 0:02:20.1]} 31. Bxa4 {[%clk 0:01:31.2]} 31... Nf6
{[%clk 0:02:19.5]} 32. Bc2 {[%clk 0:01:28.6]} 32... Nh5 {[%clk 0:02:19.2]} 33.
f5 {[%clk 0:01:17.9]} 33... gxf5 {[%clk 0:02:18]} 34. Kg2 {[%clk 0:01:13.5]}
34... Kf6 {[%clk 0:02:17.2]} 35. Kf3 {[%clk 0:01:12.6]} 35... Ke5 {[%clk
0:02:17.7]} 36. Ba4 {[%clk 0:01:09.6]} 36... Nf4 {[%clk 0:02:17.5]} 37. Be8
{[%clk 0:01:08.1]} 37... f6 {[%clk 0:02:17.3]} 38. Ke3 {[%clk 0:01:05.7]} 38...
Ng2+ {[%clk 0:02:16.8]} 39. Kd3 {[%clk 0:01:05.7]} 39... Nxh4 {[%clk 0:02:16.5]}
40. c5 {[%clk 0:01:05.9]} 40... bxc5 {[%clk 0:02:16.5]} 41. Kc4 {[%clk
0:01:06.8]} 41... Kd6 {[%clk 0:02:16.5]} 42. Bf7 {[%clk 0:01:06.3]} 42... Nf3
{[%clk 0:02:15.7]} 43. Bh5 {[%clk 0:01:05.7]} 43... Ne5+ {[%clk 0:02:15.5]} 44.
Kb5 {[%clk 0:01:06.2]} 44... f4 {[%clk 0:02:15.5]} 45. f3 {[%clk 0:01:05.2]}
45... f5 {[%clk 0:02:15.5]} 46. c4 {[%clk 0:01:03.1]} 46... Nd3 {[%clk
0:02:15.4]} 47. Bf7 {[%clk 0:00:57.2]} 47... Ne5 {[%clk 0:02:11.2]} 48. Bh5
{[%clk 0:00:55.1]} 48... Nd7 {[%clk 0:02:10.8]} 49. Be8 {[%clk 0:00:46.6]} 49...
Nf6 {[%clk 0:02:11.7]} 50. Bg6 {[%clk 0:00:45.9]} 50... h5 {[%clk 0:02:11.5]}
51. Bf7 {[%clk 0:00:38.5]} 51... h4 {[%clk 0:02:11.4]} 0-1

[Event "Late-Titled-Tuesday-Blitz-May-14-2024"]
[Site "Chess.com"]
[Date "2024.05.14"]
[Round "1"]
[White "SHIVACalypso"]
[Black "maurovargas01"]
[Result "1-0"]
[WhiteElo "2553"]
[BlackElo "1941"]
[TimeControl "180+1"]
[EndTime "14:05:37 PDT"]
[Termination "SHIVACalypso won on time"]

1. e4 {[%clk 0:02:58]} 1... c5 {[%clk 0:02:59.1]} 2. Nc3 {[%clk 0:02:56]} 2...
d6 {[%clk 0:02:58.6]} 3. g3 {[%clk 0:02:55.3]} 3... g6 {[%clk 0:02:55.8]} 4. Bg2
{[%clk 0:02:55.8]} 4... Bg7 {[%clk 0:02:56]} 5. f4 {[%clk 0:02:54.8]} 5... a6
{[%clk 0:02:55.2]} 6. Nf3 {[%clk 0:02:55.3]} 6... b5 {[%clk 0:02:55.1]} 7. O-O
{[%clk 0:02:54.4]} 7... Bb7 {[%clk 0:02:54.1]} 8. d3 {[%clk 0:02:53.8]} 8... Qb6
{[%clk 0:02:54]} 9. Be3 {[%clk 0:02:52.5]} 9... Nc6 {[%clk 0:02:52.8]} 10. f5
{[%clk 0:02:49]} 10... b4 {[%clk 0:02:51.3]} 11. Nd5 {[%clk 0:02:47.7]} 11...
Qd8 {[%clk 0:02:48.5]} 12. fxg6 {[%clk 0:02:42.9]} 12... hxg6 {[%clk 0:02:47.6]}
13. Ng5 {[%clk 0:02:34.3]} 13... Nh6 {[%clk 0:02:21.2]} 14. Bh3 {[%clk 0:02:16]}
14... Bxb2 {[%clk 0:02:15.4]} 15. Qf3 {[%clk 0:01:56.3]} 15... O-O {[%clk
0:01:59.9]} 16. Rab1 {[%clk 0:01:52.5]} 16... Bg7 {[%clk 0:01:58.6]} 17. Qf4
{[%clk 0:01:45.6]} 17... Nd4 {[%clk 0:01:39.5]} 18. Qh4 {[%clk 0:01:38.7]} 18...
Bxd5 {[%clk 0:01:22.5]} 19. exd5 {[%clk 0:01:38.7]} 19... Nxc2 {[%clk
0:00:38.9]} 20. Bd2 {[%clk 0:01:38.1]} 20... Nd4 {[%clk 0:00:22.4]} 21. Rbe1
{[%clk 0:01:38.3]} 21... Ndf5 {[%clk 0:00:12.2]} 22. Bxf5 {[%clk 0:01:37.7]}
22... gxf5 {[%clk 0:00:11.7]} 23. Nh3 {[%clk 0:01:28.5]} 1-0

[Event "Late-Titled-Tuesday-Blitz-May-14-2024"]
[Site "Chess.com"]
[Date "2024.05.14"]
[Round "1"]
[White "karinachess1"]
[Black "NCchamp"]
[Result "1-0"]
[WhiteElo "2631"]
[BlackElo "2312"]
[TimeControl "180+1"]
[EndTime "14:05:41 PDT"]
[Termination "karinachess1 won by resignation"]

1. d4 {[%clk 0:03:00.9]} 1... d5 {[%clk 0:02:58.3]} 2. c4 {[%clk 0:03:00.7]}
2... dxc4 {[%clk 0:02:59.2]} 3. Nf3 {[%clk 0:03:00.3]} 3... a6 {[%clk
0:02:56.6]} 4. e4 {[%clk 0:02:56.7]} 4... b5 {[%clk 0:02:52.4]} 5. a4 {[%clk
0:02:56.7]} 5... Bb7 {[%clk 0:02:52.1]} 6. e5 {[%clk 0:02:47.5]} 6... e6 {[%clk
0:02:39.1]} 7. Nc3 {[%clk 0:02:47.4]} 7... Bb4 {[%clk 0:02:35.5]} 8. Be3 {[%clk
0:02:43.2]} 8... Ne7 {[%clk 0:02:32]} 9. Be2 {[%clk 0:02:43.3]} 9... O-O {[%clk
0:02:29.3]} 10. O-O {[%clk 0:02:43.2]} 10... Bxc3 {[%clk 0:02:06.2]} 11. bxc3
{[%clk 0:02:42.5]} 11... Nd5 {[%clk 0:02:07.1]} 12. Bd2 {[%clk 0:02:37.5]} 12...
Nd7 {[%clk 0:02:06.6]} 13. Qc2 {[%clk 0:02:37.4]} 13... N7b6 {[%clk 0:02:01.7]}
14. Ng5 {[%clk 0:02:36.5]} 14... g6 {[%clk 0:02:00.2]} 15. a5 {[%clk 0:02:36.3]}
15... Nd7 {[%clk 0:01:57.2]} 16. Ne4 {[%clk 0:02:36.2]} 16... Ne7 {[%clk
0:01:42.5]} 17. Bf3 {[%clk 0:02:30]} 17... Bxe4 {[%clk 0:01:39.1]} 18. Qxe4
{[%clk 0:02:26]} 18... Nd5 {[%clk 0:01:38.1]} 19. Qg4 {[%clk 0:02:15.7]} 19...
c6 {[%clk 0:01:30.2]} 20. h4 {[%clk 0:02:15.6]} 20... h5 {[%clk 0:01:22.5]} 21.
Qg3 {[%clk 0:02:15.9]} 21... Kh7 {[%clk 0:01:22.6]} 22. Be4 {[%clk 0:02:04]}
22... Rg8 {[%clk 0:01:16.2]} 23. Bg5 {[%clk 0:02:02.4]} 23... f6 {[%clk
0:01:07]} 24. exf6 {[%clk 0:01:53.8]} 24... N7xf6 {[%clk 0:01:06]} 25. Qf3
{[%clk 0:01:46.3]} 25... Qf8 {[%clk 0:01:00.6]} 26. Bxf6 {[%clk 0:01:40.1]}
26... Nxf6 {[%clk 0:00:48.7]} 27. Bxc6 {[%clk 0:01:39.9]} 27... Rb8 {[%clk
0:00:49]} 28. Rae1 {[%clk 0:01:38.5]} 28... Qf7 {[%clk 0:00:35.1]} 29. Re5
{[%clk 0:01:37.4]} 29... Rgf8 {[%clk 0:00:32.2]} 30. Be4 {[%clk 0:01:28.8]}
30... Nxe4 {[%clk 0:00:31.9]} 31. Qxe4 {[%clk 0:01:29.7]} 31... Rfe8 {[%clk
0:00:28.1]} 32. Rxh5+ {[%clk 0:01:29.5]} 32... Kg7 {[%clk 0:00:28]} 33. Qe5+
{[%clk 0:01:29.9]} 33... Qf6 {[%clk 0:00:28.2]} 34. Rh7+ {[%clk 0:01:30.1]}
34... Kxh7 {[%clk 0:00:28.3]} 35. Qxf6 {[%clk 0:01:30.6]} 1-0

[Event "Late-Titled-Tuesday-Blitz-May-14-2024"]
[Site "Chess.com"]
[Date "2024.05.14"]
[Round "1"]
[White "Cherepov_Alexej"]
[Black "ReadySkate"]
[Result "0-1"]
[WhiteElo "2412"]
[BlackElo "2737"]
[TimeControl "180+1"]
[EndTime "14:05:50 PDT"]
[Termination "ReadySkate won by resignation"]

1. d4 {[%clk 0:02:57.7]} 1... Nf6 {[%clk 0:02:59.9]} 2. c4 {[%clk 0:02:56.2]}
2... g6 {[%clk 0:03:00.4]} 3. Nc3 {[%clk 0:02:55.6]} 3... d5 {[%clk 0:03:00.9]}
4. Nf3 {[%clk 0:02:54.9]} 4... Bg7 {[%clk 0:03:00.9]} 5. Bg5 {[%clk 0:02:54.4]}
5... Ne4 {[%clk 0:03:00.5]} 6. cxd5 {[%clk 0:02:54.6]} 6... Nxg5 {[%clk
0:03:00.4]} 7. Nxg5 {[%clk 0:02:55.5]} 7... e6 {[%clk 0:03:01.1]} 8. Qa4+ {[%clk
0:02:55.2]} 8... c6 {[%clk 0:03:00.4]} 9. dxc6 {[%clk 0:02:53.5]} 9... Nxc6
{[%clk 0:03:00.8]} 10. Nf3 {[%clk 0:02:53.9]} 10... Bd7 {[%clk 0:02:44.4]} 11.
Qd1 {[%clk 0:02:51.4]} 11... Qb6 {[%clk 0:02:43.9]} 12. Qd2 {[%clk 0:02:31.8]}
12... Nxd4 {[%clk 0:02:38.7]} 13. Nxd4 {[%clk 0:02:28.1]} 13... Bxd4 {[%clk
0:02:36.8]} 14. O-O-O {[%clk 0:02:24]} 14... e5 {[%clk 0:02:22]} 15. e3 {[%clk
0:02:12.1]} 15... Bg4 {[%clk 0:02:20]} 16. Bb5+ {[%clk 0:01:57.6]} 16... Kf8
{[%clk 0:02:17]} 17. exd4 {[%clk 0:01:57.3]} 17... Bxd1 {[%clk 0:02:15.3]} 18.
Rxd1 {[%clk 0:01:49.3]} 18... exd4 {[%clk 0:02:11.9]} 19. Qxd4 {[%clk
0:01:32.2]} 19... Qxd4 {[%clk 0:02:10.6]} 20. Rxd4 {[%clk 0:01:33.1]} 20... a6
{[%clk 0:02:05.4]} 21. Bc4 {[%clk 0:01:32.8]} 21... Rc8 {[%clk 0:02:01.2]} 22.
Bb3 {[%clk 0:01:27.4]} 22... Rc7 {[%clk 0:02:00.2]} 23. Rd8+ {[%clk 0:01:12.7]}
23... Kg7 {[%clk 0:02:00]} 24. Rxh8 {[%clk 0:01:12.4]} 24... Kxh8 {[%clk
0:02:00.9]} 25. Kd2 {[%clk 0:01:11.7]} 25... Kg7 {[%clk 0:02:00.3]} 26. Nd5
{[%clk 0:01:06.2]} 26... Rd7 {[%clk 0:01:55.9]} 27. Ke3 {[%clk 0:01:05.8]} 27...
Rd6 {[%clk 0:01:52.3]} 28. Kd4 {[%clk 0:01:03.7]} 28... Rc6 {[%clk 0:01:50.8]}
29. a4 {[%clk 0:00:57.1]} 29... Rc1 {[%clk 0:01:49.3]} 30. h4 {[%clk 0:00:51.4]}
30... Rf1 {[%clk 0:01:46.8]} 31. Ne3 {[%clk 0:00:22.6]} 31... Rxf2 {[%clk
0:01:42.9]} 32. Bc2 {[%clk 0:00:23.2]} 32... f5 {[%clk 0:01:42.7]} 33. Ke5
{[%clk 0:00:15.5]} 33... f4 {[%clk 0:01:38]} 0-1